{"text_format":"3","workbook":"xlsx","n_sheets":4,"sheets":["Start","PROSJEKTPARAMETERE","PROSJEKTDETALJER","PROSJEKTTOTALER"],"not_rendered":{"charts":2,"defined_names":3,"pivot_tables":1},"read":"whole","date_system":"1900"}

{"sheet":"Start","index":0,"n_rows":8,"n_cols":2,"rows_kept":8}
[null,"OM DENNE MALEN"]
[]
[null,"Bruk denne arbeidsboken til å spore prosjektparametere, prosjektdetaljer og prosjekttotaler under prosjektplanlegging for advokatfirmaer."]
[null,"Fyll ut firmanavn i Prosjektparametere-regnearket, og de vil automatisk oppdateres i andre regneark."]
[null,"Skriv inn informasjon i Prosjektparametere-regnearket for å oppdatere stolpediagrammer, og i Prosjektdetaljer-regneark. Pivottabell i Prosjekttotaler-regnearket oppdateres automatisk."]
[null,"Obs!  "]
[null,"Flere instruksjoner finnes i kolonne A i hvert regneark. Denne teksten er skjult med hensikt. Hvis du vil fjerne teksten, velger du kolonne A og deretter SLETT. Hvis du vil vise teksten, velger du kolonne A, og endrer deretter skriftfarge."]
[null,"Hvis du vil finne ut mer om tabeller i regneark, kan du trykke på SKIFT og deretter på F10 i en tabell, velge alternativet for TABELL og deretter ALTERNATIV TEKST. For pivottabell i Prosjektkostnader-regnearket, trykk på SKIFT og deretter på F10 i tabellen, velg ALTERNATIVER FOR PIVOTTABELL, og velg deretter ALTERNATIV TEKST-fanen."]

{"sheet":"PROSJEKTPARAMETERE","index":1,"n_rows":19,"n_cols":9,"rows_kept":19}
["Opprett prosjektparametere i dette regnearket. Skriv inn firmanavn i cellen til høyre. Du finner nyttige instruksjoner i cellene i denne kolonnen.","Firmanavn"]
["Tittelen på dette regnearket finnes i cellen til høyre","Prosjektplanlegging for advokatfirmaer"]
["Taushetspliktsmeldingen er i cellen til høyre.",{"$f":"B1&\" konfidensielt\"","v":"Firmanavn konfidensielt"}]
["Tips finnes i cellen til høyre.","Skyggelagte celler beregnes for deg. Du trenger ikke å skrive inn noe i dem."]
["Skriv inn informasjon i Parametere-tabellen, som starter i cellen til høyre. Neste instruksjon finnes i celle A12.","PROSJEKTTYPE","GENERELL PARTNER","FORRETNINGSADVOKAT","FØRE ET FORSVAR","ADVOKAT FOR ÅNDSVERK","KONKURSADVOKAT","ADMINISTRASJONSPERSONALE","TOTALT"]
[null,"Firmaregistrering",{"v":0.1,"d":"10%"},{"v":0.4,"d":"40%"},{"v":0,"d":"0%"},{"v":0,"d":"0%"},{"v":0,"d":"0%"},{"v":0.5,"d":"50%"},{"$f":"SUM(Parametere[[#This Row],[GENERELL PARTNER]:[ADMINISTRASJONSPERSONALE]])","v":{"v":1,"d":"100%"}}]
[null,"Firmaanskaffelse",{"v":0.1,"d":"10%"},{"v":0.4,"d":"40%"},{"v":0,"d":"0%"},{"v":0.1,"d":"10%"},{"v":0,"d":"0%"},{"v":0.4,"d":"40%"},{"$f":"SUM(Parametere[[#This Row],[GENERELL PARTNER]:[ADMINISTRASJONSPERSONALE]])","v":{"v":1,"d":"100%"}}]
[null,"Beskyttelse mot produktansvar",{"v":0.2,"d":"20%"},{"v":0,"d":"0%"},{"v":0.5,"d":"50%"},{"v":0,"d":"0%"},{"v":0,"d":"0%"},{"v":0.3,"d":"30%"},{"$f":"SUM(Parametere[[#This Row],[GENERELL PARTNER]:[ADMINISTRASJONSPERSONALE]])","v":{"v":1,"d":"100%"}}]
[null,"Patentsøknad",{"v":0.1,"d":"10%"},{"v":0,"d":"0%"},{"v":0,"d":"0%"},{"v":0.6,"d":"60%"},{"v":0,"d":"0%"},{"v":0.3,"d":"30%"},{"$f":"SUM(Parametere[[#This Row],[GENERELL PARTNER]:[ADMINISTRASJONSPERSONALE]])","v":{"v":1,"d":"100%"}}]
[null,"Søksmål fra ansatt",{"v":0.2,"d":"20%"},{"v":0.1,"d":"10%"},{"v":0.4,"d":"40%"},{"v":0,"d":"0%"},{"v":0,"d":"0%"},{"v":0.3,"d":"30%"},{"$f":"SUM(Parametere[[#This Row],[GENERELL PARTNER]:[ADMINISTRASJONSPERSONALE]])","v":{"v":1,"d":"100%"}}]
[null,"Konkurs",{"v":0.1,"d":"10%"},{"v":0.2,"d":"20%"},{"v":0,"d":"0%"},{"v":0,"d":"0%"},{"v":0.4,"d":"40%"},{"v":0.3,"d":"30%"},{"$f":"SUM(Parametere[[#This Row],[GENERELL PARTNER]:[ADMINISTRASJONSPERSONALE]])","v":{"v":1,"d":"100%"}}]
["Skriv inn Blandede satser i cellene til høyre, fra celle C12 til H12. Neste instruksjon finnes i celle A14.","Blandede satser",{"v":350,"d":"kr 350"},{"v":250,"d":"kr 250"},{"v":300,"d":"kr 300"},{"v":275,"d":"kr 275"},{"v":225,"d":"kr 225"},{"v":125,"d":"kr 125"}]
[]
["Kolonnediagram som viser sammenligning mellom Planlagte kontra Faktiske kostnader er i cellen til høyre, og kolonnediagram som viser sammenligning mellom Planlagte kontra Faktiske timer er i celle F14."]
[null,null,"GENERELL PARTNER","FIRMA","FØRE ET FORSVAR","ÅNDSVERK","KONKURS","ADMINISTRASJONSPERSONALE"]
[null,"PLANLAGTE KOSTNADER",{"$f":"SUBTOTAL(109,Detaljer[GENERELL PARTNER])","v":{"v":78750,"d":"kr 78,750.00"}},{"$f":"SUBTOTAL(109,Detaljer[FORRETNINGSADVOKAT])","v":{"v":66250,"d":"kr 66,250.00"}},{"$f":"SUBTOTAL(109,Detaljer[FØRE ET FORSVAR])","v":{"v":105000,"d":"kr 105,000.00"}},{"$f":"SUBTOTAL(109,Detaljer[ADVOKAT FOR ÅNDSVERK])","v":{"v":35750,"d":"kr 35,750.00"}},{"$f":"SUBTOTAL(109,Detaljer[KONKURSADVOKAT])","v":{"v":0,"d":"kr 0.00"}},{"$f":"SUBTOTAL(109,Detaljer[ADMINISTRASJONSPERSONALE])","v":{"v":66250,"d":"kr 66,250.00"}}]
[null,"FAKTISKE KOSTNADER",{"$f":"SUBTOTAL(109,Detaljer[GENERELL PARTNER 2])","v":{"v":79275,"d":"kr 79,275.00"}},{"$f":"SUBTOTAL(109,Detaljer[FORRETNINGSADVOKAT 2])","v":{"v":67375,"d":"kr 67,375.00"}},{"$f":"SUBTOTAL(109,Detaljer[FORSVARSPROSESS 2])","v":{"v":105600,"d":"kr 105,600.00"}},{"$f":"SUBTOTAL(109,Detaljer[ADVOKAT FOR ÅNDSVERK 2])","v":{"v":34650,"d":"kr 34,650.00"}},{"$f":"SUBTOTAL(109,Detaljer[KONKURSADVOKAT 2])","v":{"v":0,"d":"kr 0.00"}},{"$f":"SUBTOTAL(109,Detaljer[ADMINISTRASJONSPERSONALE 2])","v":{"v":67000,"d":"kr 67,000.00"}}]
[null,"PLANLAGTE TIMER",{"$f":"C16/$C$12","v":{"v":225,"d":"225.00"}},{"$f":"D16/$C$12","v":{"v":189.28571428571428,"d":"189.29"}},{"v":300,"d":"300.00"},{"v":102.14285714285714,"d":"102.14"},{"v":0,"d":"0.00"},{"v":189.28571428571428,"d":"189.29"}]
[null,"FAKTISKE TIMER",{"$f":"C17/$C$12","v":{"v":226.5,"d":"226.50"}},{"$f":"D17/$C$12","v":{"v":192.5,"d":"192.50"}},{"$f":"E17/$C$12","v":{"v":301.7142857142857,"d":"301.71"}},{"$f":"F17/$C$12","v":{"v":99,"d":"99.00"}},{"$f":"G17/$C$12","v":{"v":0,"d":"0.00"}},{"$f":"H17/$C$12","v":{"v":191.42857142857142,"d":"191.43"}}]

{"sheet":"PROSJEKTDETALJER","index":2,"n_rows":10,"n_cols":25,"rows_kept":10,"merged":[[1,24,8,28]]}
["Opprett prosjektdetaljer i dette regnearket. Firmanavn oppdateres automatisk i cellen til høyre. Du finner nyttige instruksjoner i cellene i denne kolonnen. Trykk på PIL NED for å komme i gang.",{"$f":"PROSJEKTPARAMETERE!B1","v":"Firmanavn"}]
["Tittelen på dette regnearket er i cellen til høyre og informasjonstips i celle Y2.",{"$f":"PROSJEKTPARAMETERE!B2","v":"Prosjektplanlegging for advokatfirmaer"},{"$nulls":22},"INFO:\nHvis du vil legge til en rad, velger du cellen lengst til høyre i tabellen (ikke Totaler-raden). Trykk på TAB, eller trykk på SKIFT og deretter på F10 i tabellen der du ønsker å sette inn en rad. Velg deretter Sett inn | Tabellrader over/under.\nSørg for at du sletter alle ubrukte rader. Dette er fordi at PROSJEKTTOTALER-pivottabellen bruker alle tabellcellene, og ellers ville ha gitt deg feil resultat."]
["Taushetspliktsmeldingen er i cellen til høyre.",{"$f":"PROSJEKTPARAMETERE!B3","v":"Firmanavn konfidensielt"}]
["Skriv inn informasjon i Detaljer-tabellen, som starter i cellen til høyre. Prosjekttyper i Detaljer-tabellen til høyre oppdateres automatisk fra Parametere-tabellen i Prosjektparametere-regnearket.","PROSJEKTNAVN","PROSJEKTTYPE","BEREGNET START","BEREGNET AVSLUTNING","FAKTISK START","FAKTISK AVSLUTNING","BEREGNET ARBEID","FAKTISK ARBEID","BEREGNET VARIGHET","FAKTISK VARIGHET","GENERELL PARTNER","FORRETNINGSADVOKAT","FØRE ET FORSVAR","ADVOKAT FOR ÅNDSVERK","KONKURSADVOKAT","ADMINISTRASJONSPERSONALE","GENERELL PARTNER 2","FORRETNINGSADVOKAT 2","FORSVARSPROSESS 2","ADVOKAT FOR ÅNDSVERK 2","KONKURSADVOKAT 2","ADMINISTRASJONSPERSONALE 2"]
[null,"Prosjekt 1","Firmaregistrering",{"$f":"TODAY()","v":"2019-02-18"},{"$f":"TODAY()+60","v":"2019-04-19"},{"$f":"TODAY()+10","v":"2019-02-28"},{"$f":"TODAY()+65","v":"2019-04-24"},200,220,{"$f":"DAYS360(Detaljer[[#This Row],[BEREGNET START]],Detaljer[[#This Row],[BEREGNET AVSLUTNING]],FALSE)","v":61},{"$f":"DAYS360(Detaljer[[#This Row],[FAKTISK START]],Detaljer[[#This Row],[FAKTISK AVSLUTNING]],FALSE)","v":54},{"$f":"INDEX(Parametere[],MATCH(Detaljer[[#This Row],[PROSJEKTTYPE]],Parametere[PROSJEKTTYPE],0),MATCH(Detaljer[[#Headers],[GENERELL PARTNER]],Parametere[#Headers],0))*INDEX(PROSJEKTPARAMETERE!$B$12:$H$12,1,MATCH(Detaljer[[#Headers],[GENERELL PARTNER]],Parametere[#Headers],0))*Detaljer[[#This Row],[BEREGNET ARBEID]]","v":{"v":7000,"d":"kr 7,000"}},{"$f":"INDEX(Parametere[],MATCH(Detaljer[[#This Row],[PROSJEKTTYPE]],Parametere[PROSJEKTTYPE],0),MATCH(Detaljer[[#Headers],[FORRETNINGSADVOKAT]],Parametere[#Headers],0))*INDEX(PROSJEKTPARAMETERE!$B$12:$H$12,1,MATCH(Detaljer[[#Headers],[FORRETNINGSADVOKAT]],Parametere[#Headers],0))*Detaljer[[#This Row],[BEREGNET ARBEID]]","v":{"v":20000,"d":"kr 20,000"}},{"$f":"INDEX(Parametere[],MATCH(Detaljer[[#This Row],[PROSJEKTTYPE]],Parametere[PROSJEKTTYPE],0),MATCH(Detaljer[[#Headers],[FØRE ET FORSVAR]],Parametere[#Headers],0))*INDEX(PROSJEKTPARAMETERE!$B$12:$H$12,1,MATCH(Detaljer[[#Headers],[FØRE ET FORSVAR]],Parametere[#Headers],0))*Detaljer[[#This Row],[BEREGNET ARBEID]]","v":{"v":0,"d":"kr 0"}},{"$f":"INDEX(Parametere[],MATCH(Detaljer[[#This Row],[PROSJEKTTYPE]],Parametere[PROSJEKTTYPE],0),MATCH(Detaljer[[#Headers],[ADVOKAT FOR ÅNDSVERK]],Parametere[#Headers],0))*INDEX(PROSJEKTPARAMETERE!$B$12:$H$12,1,MATCH(Detaljer[[#Headers],[ADVOKAT FOR ÅNDSVERK]],Parametere[#Headers],0))*Detaljer[[#This Row],[BEREGNET ARBEID]]","v":{"v":0,"d":"kr 0"}},{"$f":"INDEX(Parametere[],MATCH(Detaljer[[#This Row],[PROSJEKTTYPE]],Parametere[PROSJEKTTYPE],0),MATCH(Detaljer[[#Headers],[KONKURSADVOKAT]],Parametere[#Headers],0))*INDEX(PROSJEKTPARAMETERE!$B$12:$H$12,1,MATCH(Detaljer[[#Headers],[KONKURSADVOKAT]],Parametere[#Headers],0))*Detaljer[[#This Row],[BEREGNET ARBEID]]","v":{"v":0,"d":"kr 0"}},{"$f":"INDEX(Parametere[],MATCH(Detaljer[[#This Row],[PROSJEKTTYPE]],Parametere[PROSJEKTTYPE],0),MATCH(Detaljer[[#Headers],[ADMINISTRASJONSPERSONALE]],Parametere[#Headers],0))*INDEX(PROSJEKTPARAMETERE!$B$12:$H$12,1,MATCH(Detaljer[[#Headers],[ADMINISTRASJONSPERSONALE]],Parametere[#Headers],0))*Detaljer[[#This Row],[BEREGNET ARBEID]]","v":{"v":12500,"d":"kr 12,500"}},{"$f":"INDEX(Parametere[],MATCH(Detaljer[[#This Row],[PROSJEKTTYPE]],Parametere[PROSJEKTTYPE],0),MATCH(Detaljer[[#Headers],[GENERELL PARTNER]],Parametere[#Headers],0))*INDEX(PROSJEKTPARAMETERE!$B$12:$H$12,1,MATCH(Detaljer[[#Headers],[GENERELL PARTNER]],Parametere[#Headers],0))*Detaljer[[#This Row],[FAKTISK ARBEID]]","v":{"v":7700,"d":"kr 7,700"}},{"$f":"INDEX(Parametere[],MATCH(Detaljer[[#This Row],[PROSJEKTTYPE]],Parametere[PROSJEKTTYPE],0),MATCH(Detaljer[[#Headers],[FORRETNINGSADVOKAT]],Parametere[#Headers],0))*INDEX(PROSJEKTPARAMETERE!$B$12:$H$12,1,MATCH(Detaljer[[#Headers],[FORRETNINGSADVOKAT]],Parametere[#Headers],0))*Detaljer[[#This Row],[FAKTISK ARBEID]]","v":{"v":22000,"d":"kr 22,000"}},{"$f":"INDEX(Parametere[],MATCH(Detaljer[[#This Row],[PROSJEKTTYPE]],Parametere[PROSJEKTTYPE],0),MATCH(Detaljer[[#Headers],[FØRE ET FORSVAR]],Parametere[#Headers],0))*INDEX(PROSJEKTPARAMETERE!$B$12:$H$12,1,MATCH(Detaljer[[#Headers],[FØRE ET FORSVAR]],Parametere[#Headers],0))*Detaljer[[#This Row],[FAKTISK ARBEID]]","v":{"v":0,"d":"kr 0"}},{"$f":"INDEX(Parametere[],MATCH(Detaljer[[#This Row],[PROSJEKTTYPE]],Parametere[PROSJEKTTYPE],0),MATCH(Detaljer[[#Headers],[ADVOKAT FOR ÅNDSVERK]],Parametere[#Headers],0))*INDEX(PROSJEKTPARAMETERE!$B$12:$H$12,1,MATCH(Detaljer[[#Headers],[ADVOKAT FOR ÅNDSVERK]],Parametere[#Headers],0))*Detaljer[[#This Row],[FAKTISK ARBEID]]","v":{"v":0,"d":"kr 0"}},{"$f":"INDEX(Parametere[],MATCH(Detaljer[[#This Row],[PROSJEKTTYPE]],Parametere[PROSJEKTTYPE],0),MATCH(Detaljer[[#Headers],[KONKURSADVOKAT]],Parametere[#Headers],0))*INDEX(PROSJEKTPARAMETERE!$B$12:$H$12,1,MATCH(Detaljer[[#Headers],[KONKURSADVOKAT]],Parametere[#Headers],0))*Detaljer[[#This Row],[FAKTISK ARBEID]]","v":{"v":0,"d":"kr 0"}},{"$f":"INDEX(Parametere[],MATCH(Detaljer[[#This Row],[PROSJEKTTYPE]],Parametere[PROSJEKTTYPE],0),MATCH(Detaljer[[#Headers],[ADMINISTRASJONSPERSONALE]],Parametere[#Headers],0))*INDEX(PROSJEKTPARAMETERE!$B$12:$H$12,1,MATCH(Detaljer[[#Headers],[ADMINISTRASJONSPERSONALE]],Parametere[#Headers],0))*Detaljer[[#This Row],[FAKTISK ARBEID]]","v":{"v":13750,"d":"kr 13,750"}}]
[null,"Prosjekt 2","Firmaanskaffelse",{"$f":"TODAY()+30","v":"2019-03-20"},{"$f":"TODAY()+100","v":"2019-05-29"},{"$f":"TODAY()+40","v":"2019-03-30"},{"$f":"TODAY()+110","v":"2019-06-08"},400,390,{"$f":"DAYS360(Detaljer[[#This Row],[BEREGNET START]],Detaljer[[#This Row],[BEREGNET AVSLUTNING]],FALSE)","v":69},{"$f":"DAYS360(Detaljer[[#This Row],[FAKTISK START]],Detaljer[[#This Row],[FAKTISK AVSLUTNING]],FALSE)","v":68},{"$f":"INDEX(Parametere[],MATCH(Detaljer[[#This Row],[PROSJEKTTYPE]],Parametere[PROSJEKTTYPE],0),MATCH(Detaljer[[#Headers],[GENERELL PARTNER]],Parametere[#Headers],0))*INDEX(PROSJEKTPARAMETERE!$B$12:$H$12,1,MATCH(Detaljer[[#Headers],[GENERELL PARTNER]],Parametere[#Headers],0))*Detaljer[[#This Row],[BEREGNET ARBEID]]","v":{"v":14000,"d":"kr 14,000"}},{"$f":"INDEX(Parametere[],MATCH(Detaljer[[#This Row],[PROSJEKTTYPE]],Parametere[PROSJEKTTYPE],0),MATCH(Detaljer[[#Headers],[FORRETNINGSADVOKAT]],Parametere[#Headers],0))*INDEX(PROSJEKTPARAMETERE!$B$12:$H$12,1,MATCH(Detaljer[[#Headers],[FORRETNINGSADVOKAT]],Parametere[#Headers],0))*Detaljer[[#This Row],[BEREGNET ARBEID]]","v":{"v":40000,"d":"kr 40,000"}},{"$f":"INDEX(Parametere[],MATCH(Detaljer[[#This Row],[PROSJEKTTYPE]],Parametere[PROSJEKTTYPE],0),MATCH(Detaljer[[#Headers],[FØRE ET FORSVAR]],Parametere[#Headers],0))*INDEX(PROSJEKTPARAMETERE!$B$12:$H$12,1,MATCH(Detaljer[[#Headers],[FØRE ET FORSVAR]],Parametere[#Headers],0))*Detaljer[[#This Row],[BEREGNET ARBEID]]","v":{"v":0,"d":"kr 0"}},{"$f":"INDEX(Parametere[],MATCH(Detaljer[[#This Row],[PROSJEKTTYPE]],Parametere[PROSJEKTTYPE],0),MATCH(Detaljer[[#Headers],[ADVOKAT FOR ÅNDSVERK]],Parametere[#Headers],0))*INDEX(PROSJEKTPARAMETERE!$B$12:$H$12,1,MATCH(Detaljer[[#Headers],[ADVOKAT FOR ÅNDSVERK]],Parametere[#Headers],0))*Detaljer[[#This Row],[BEREGNET ARBEID]]","v":{"v":11000,"d":"kr 11,000"}},{"$f":"INDEX(Parametere[],MATCH(Detaljer[[#This Row],[PROSJEKTTYPE]],Parametere[PROSJEKTTYPE],0),MATCH(Detaljer[[#Headers],[KONKURSADVOKAT]],Parametere[#Headers],0))*INDEX(PROSJEKTPARAMETERE!$B$12:$H$12,1,MATCH(Detaljer[[#Headers],[KONKURSADVOKAT]],Parametere[#Headers],0))*Detaljer[[#This Row],[BEREGNET ARBEID]]","v":{"v":0,"d":"kr 0"}},{"$f":"INDEX(Parametere[],MATCH(Detaljer[[#This Row],[PROSJEKTTYPE]],Parametere[PROSJEKTTYPE],0),MATCH(Detaljer[[#Headers],[ADMINISTRASJONSPERSONALE]],Parametere[#Headers],0))*INDEX(PROSJEKTPARAMETERE!$B$12:$H$12,1,MATCH(Detaljer[[#Headers],[ADMINISTRASJONSPERSONALE]],Parametere[#Headers],0))*Detaljer[[#This Row],[BEREGNET ARBEID]]","v":{"v":20000,"d":"kr 20,000"}},{"$f":"INDEX(Parametere[],MATCH(Detaljer[[#This Row],[PROSJEKTTYPE]],Parametere[PROSJEKTTYPE],0),MATCH(Detaljer[[#Headers],[GENERELL PARTNER]],Parametere[#Headers],0))*INDEX(PROSJEKTPARAMETERE!$B$12:$H$12,1,MATCH(Detaljer[[#Headers],[GENERELL PARTNER]],Parametere[#Headers],0))*Detaljer[[#This Row],[FAKTISK ARBEID]]","v":{"v":13650,"d":"kr 13,650"}},{"$f":"INDEX(Parametere[],MATCH(Detaljer[[#This Row],[PROSJEKTTYPE]],Parametere[PROSJEKTTYPE],0),MATCH(Detaljer[[#Headers],[FORRETNINGSADVOKAT]],Parametere[#Headers],0))*INDEX(PROSJEKTPARAMETERE!$B$12:$H$12,1,MATCH(Detaljer[[#Headers],[FORRETNINGSADVOKAT]],Parametere[#Headers],0))*Detaljer[[#This Row],[FAKTISK ARBEID]]","v":{"v":39000,"d":"kr 39,000"}},{"$f":"INDEX(Parametere[],MATCH(Detaljer[[#This Row],[PROSJEKTTYPE]],Parametere[PROSJEKTTYPE],0),MATCH(Detaljer[[#Headers],[FØRE ET FORSVAR]],Parametere[#Headers],0))*INDEX(PROSJEKTPARAMETERE!$B$12:$H$12,1,MATCH(Detaljer[[#Headers],[FØRE ET FORSVAR]],Parametere[#Headers],0))*Detaljer[[#This Row],[FAKTISK ARBEID]]","v":{"v":0,"d":"kr 0"}},{"$f":"INDEX(Parametere[],MATCH(Detaljer[[#This Row],[PROSJEKTTYPE]],Parametere[PROSJEKTTYPE],0),MATCH(Detaljer[[#Headers],[ADVOKAT FOR ÅNDSVERK]],Parametere[#Headers],0))*INDEX(PROSJEKTPARAMETERE!$B$12:$H$12,1,MATCH(Detaljer[[#Headers],[ADVOKAT FOR ÅNDSVERK]],Parametere[#Headers],0))*Detaljer[[#This Row],[FAKTISK ARBEID]]","v":{"v":10725,"d":"kr 10,725"}},{"$f":"INDEX(Parametere[],MATCH(Detaljer[[#This Row],[PROSJEKTTYPE]],Parametere[PROSJEKTTYPE],0),MATCH(Detaljer[[#Headers],[KONKURSADVOKAT]],Parametere[#Headers],0))*INDEX(PROSJEKTPARAMETERE!$B$12:$H$12,1,MATCH(Detaljer[[#Headers],[KONKURSADVOKAT]],Parametere[#Headers],0))*Detaljer[[#This Row],[FAKTISK ARBEID]]","v":{"v":0,"d":"kr 0"}},{"$f":"INDEX(Parametere[],MATCH(Detaljer[[#This Row],[PROSJEKTTYPE]],Parametere[PROSJEKTTYPE],0),MATCH(Detaljer[[#Headers],[ADMINISTRASJONSPERSONALE]],Parametere[#Headers],0))*INDEX(PROSJEKTPARAMETERE!$B$12:$H$12,1,MATCH(Detaljer[[#Headers],[ADMINISTRASJONSPERSONALE]],Parametere[#Headers],0))*Detaljer[[#This Row],[FAKTISK ARBEID]]","v":{"v":19500,"d":"kr 19,500"}}]
[null,"Prosjekt 3","Beskyttelse mot produktansvar",{"$f":"TODAY()+150","v":"2019-07-18"},{"$f":"TODAY()+150","v":"2019-07-18"},{"$f":"TODAY()+150","v":"2019-07-18"},{"$f":"TODAY()+170","v":"2019-08-07"},500,500,{"$f":"DAYS360(Detaljer[[#This Row],[BEREGNET START]],Detaljer[[#This Row],[BEREGNET AVSLUTNING]],FALSE)","v":0},{"$f":"DAYS360(Detaljer[[#This Row],[FAKTISK START]],Detaljer[[#This Row],[FAKTISK AVSLUTNING]],FALSE)","v":19},{"$f":"INDEX(Parametere[],MATCH(Detaljer[[#This Row],[PROSJEKTTYPE]],Parametere[PROSJEKTTYPE],0),MATCH(Detaljer[[#Headers],[GENERELL PARTNER]],Parametere[#Headers],0))*INDEX(PROSJEKTPARAMETERE!$B$12:$H$12,1,MATCH(Detaljer[[#Headers],[GENERELL PARTNER]],Parametere[#Headers],0))*Detaljer[[#This Row],[BEREGNET ARBEID]]","v":{"v":35000,"d":"kr 35,000"}},{"$f":"INDEX(Parametere[],MATCH(Detaljer[[#This Row],[PROSJEKTTYPE]],Parametere[PROSJEKTTYPE],0),MATCH(Detaljer[[#Headers],[FORRETNINGSADVOKAT]],Parametere[#Headers],0))*INDEX(PROSJEKTPARAMETERE!$B$12:$H$12,1,MATCH(Detaljer[[#Headers],[FORRETNINGSADVOKAT]],Parametere[#Headers],0))*Detaljer[[#This Row],[BEREGNET ARBEID]]","v":{"v":0,"d":"kr 0"}},{"$f":"INDEX(Parametere[],MATCH(Detaljer[[#This Row],[PROSJEKTTYPE]],Parametere[PROSJEKTTYPE],0),MATCH(Detaljer[[#Headers],[FØRE ET FORSVAR]],Parametere[#Headers],0))*INDEX(PROSJEKTPARAMETERE!$B$12:$H$12,1,MATCH(Detaljer[[#Headers],[FØRE ET FORSVAR]],Parametere[#Headers],0))*Detaljer[[#This Row],[BEREGNET ARBEID]]","v":{"v":75000,"d":"kr 75,000"}},{"$f":"INDEX(Parametere[],MATCH(Detaljer[[#This Row],[PROSJEKTTYPE]],Parametere[PROSJEKTTYPE],0),MATCH(Detaljer[[#Headers],[ADVOKAT FOR ÅNDSVERK]],Parametere[#Headers],0))*INDEX(PROSJEKTPARAMETERE!$B$12:$H$12,1,MATCH(Detaljer[[#Headers],[ADVOKAT FOR ÅNDSVERK]],Parametere[#Headers],0))*Detaljer[[#This Row],[BEREGNET ARBEID]]","v":{"v":0,"d":"kr 0"}},{"$f":"INDEX(Parametere[],MATCH(Detaljer[[#This Row],[PROSJEKTTYPE]],Parametere[PROSJEKTTYPE],0),MATCH(Detaljer[[#Headers],[KONKURSADVOKAT]],Parametere[#Headers],0))*INDEX(PROSJEKTPARAMETERE!$B$12:$H$12,1,MATCH(Detaljer[[#Headers],[KONKURSADVOKAT]],Parametere[#Headers],0))*Detaljer[[#This Row],[BEREGNET ARBEID]]","v":{"v":0,"d":"kr 0"}},{"$f":"INDEX(Parametere[],MATCH(Detaljer[[#This Row],[PROSJEKTTYPE]],Parametere[PROSJEKTTYPE],0),MATCH(Detaljer[[#Headers],[ADMINISTRASJONSPERSONALE]],Parametere[#Headers],0))*INDEX(PROSJEKTPARAMETERE!$B$12:$H$12,1,MATCH(Detaljer[[#Headers],[ADMINISTRASJONSPERSONALE]],Parametere[#Headers],0))*Detaljer[[#This Row],[BEREGNET ARBEID]]","v":{"v":18750,"d":"kr 18,750"}},{"$f":"INDEX(Parametere[],MATCH(Detaljer[[#This Row],[PROSJEKTTYPE]],Parametere[PROSJEKTTYPE],0),MATCH(Detaljer[[#Headers],[GENERELL PARTNER]],Parametere[#Headers],0))*INDEX(PROSJEKTPARAMETERE!$B$12:$H$12,1,MATCH(Detaljer[[#Headers],[GENERELL PARTNER]],Parametere[#Headers],0))*Detaljer[[#This Row],[FAKTISK ARBEID]]","v":{"v":35000,"d":"kr 35,000"}},{"$f":"INDEX(Parametere[],MATCH(Detaljer[[#This Row],[PROSJEKTTYPE]],Parametere[PROSJEKTTYPE],0),MATCH(Detaljer[[#Headers],[FORRETNINGSADVOKAT]],Parametere[#Headers],0))*INDEX(PROSJEKTPARAMETERE!$B$12:$H$12,1,MATCH(Detaljer[[#Headers],[FORRETNINGSADVOKAT]],Parametere[#Headers],0))*Detaljer[[#This Row],[FAKTISK ARBEID]]","v":{"v":0,"d":"kr 0"}},{"$f":"INDEX(Parametere[],MATCH(Detaljer[[#This Row],[PROSJEKTTYPE]],Parametere[PROSJEKTTYPE],0),MATCH(Detaljer[[#Headers],[FØRE ET FORSVAR]],Parametere[#Headers],0))*INDEX(PROSJEKTPARAMETERE!$B$12:$H$12,1,MATCH(Detaljer[[#Headers],[FØRE ET FORSVAR]],Parametere[#Headers],0))*Detaljer[[#This Row],[FAKTISK ARBEID]]","v":{"v":75000,"d":"kr 75,000"}},{"$f":"INDEX(Parametere[],MATCH(Detaljer[[#This Row],[PROSJEKTTYPE]],Parametere[PROSJEKTTYPE],0),MATCH(Detaljer[[#Headers],[ADVOKAT FOR ÅNDSVERK]],Parametere[#Headers],0))*INDEX(PROSJEKTPARAMETERE!$B$12:$H$12,1,MATCH(Detaljer[[#Headers],[ADVOKAT FOR ÅNDSVERK]],Parametere[#Headers],0))*Detaljer[[#This Row],[FAKTISK ARBEID]]","v":{"v":0,"d":"kr 0"}},{"$f":"INDEX(Parametere[],MATCH(Detaljer[[#This Row],[PROSJEKTTYPE]],Parametere[PROSJEKTTYPE],0),MATCH(Detaljer[[#Headers],[KONKURSADVOKAT]],Parametere[#Headers],0))*INDEX(PROSJEKTPARAMETERE!$B$12:$H$12,1,MATCH(Detaljer[[#Headers],[KONKURSADVOKAT]],Parametere[#Headers],0))*Detaljer[[#This Row],[FAKTISK ARBEID]]","v":{"v":0,"d":"kr 0"}},{"$f":"INDEX(Parametere[],MATCH(Detaljer[[#This Row],[PROSJEKTTYPE]],Parametere[PROSJEKTTYPE],0),MATCH(Detaljer[[#Headers],[ADMINISTRASJONSPERSONALE]],Parametere[#Headers],0))*INDEX(PROSJEKTPARAMETERE!$B$12:$H$12,1,MATCH(Detaljer[[#Headers],[ADMINISTRASJONSPERSONALE]],Parametere[#Headers],0))*Detaljer[[#This Row],[FAKTISK ARBEID]]","v":{"v":18750,"d":"kr 18,750"}}]
[null,"Prosjekt 4","Patentsøknad",{"$f":"TODAY()+200","v":"2019-09-06"},{"$f":"TODAY()+230","v":"2019-10-06"},{"$f":"TODAY()+230","v":"2019-10-06"},{"$f":"TODAY()+230","v":"2019-10-06"},150,145,{"$f":"DAYS360(Detaljer[[#This Row],[BEREGNET START]],Detaljer[[#This Row],[BEREGNET AVSLUTNING]],FALSE)","v":30},{"$f":"DAYS360(Detaljer[[#This Row],[FAKTISK START]],Detaljer[[#This Row],[FAKTISK AVSLUTNING]],FALSE)","v":0},{"$f":"INDEX(Parametere[],MATCH(Detaljer[[#This Row],[PROSJEKTTYPE]],Parametere[PROSJEKTTYPE],0),MATCH(Detaljer[[#Headers],[GENERELL PARTNER]],Parametere[#Headers],0))*INDEX(PROSJEKTPARAMETERE!$B$12:$H$12,1,MATCH(Detaljer[[#Headers],[GENERELL PARTNER]],Parametere[#Headers],0))*Detaljer[[#This Row],[BEREGNET ARBEID]]","v":{"v":5250,"d":"kr 5,250"}},{"$f":"INDEX(Parametere[],MATCH(Detaljer[[#This Row],[PROSJEKTTYPE]],Parametere[PROSJEKTTYPE],0),MATCH(Detaljer[[#Headers],[FORRETNINGSADVOKAT]],Parametere[#Headers],0))*INDEX(PROSJEKTPARAMETERE!$B$12:$H$12,1,MATCH(Detaljer[[#Headers],[FORRETNINGSADVOKAT]],Parametere[#Headers],0))*Detaljer[[#This Row],[BEREGNET ARBEID]]","v":{"v":0,"d":"kr 0"}},{"$f":"INDEX(Parametere[],MATCH(Detaljer[[#This Row],[PROSJEKTTYPE]],Parametere[PROSJEKTTYPE],0),MATCH(Detaljer[[#Headers],[FØRE ET FORSVAR]],Parametere[#Headers],0))*INDEX(PROSJEKTPARAMETERE!$B$12:$H$12,1,MATCH(Detaljer[[#Headers],[FØRE ET FORSVAR]],Parametere[#Headers],0))*Detaljer[[#This Row],[BEREGNET ARBEID]]","v":{"v":0,"d":"kr 0"}},{"$f":"INDEX(Parametere[],MATCH(Detaljer[[#This Row],[PROSJEKTTYPE]],Parametere[PROSJEKTTYPE],0),MATCH(Detaljer[[#Headers],[ADVOKAT FOR ÅNDSVERK]],Parametere[#Headers],0))*INDEX(PROSJEKTPARAMETERE!$B$12:$H$12,1,MATCH(Detaljer[[#Headers],[ADVOKAT FOR ÅNDSVERK]],Parametere[#Headers],0))*Detaljer[[#This Row],[BEREGNET ARBEID]]","v":{"v":24750,"d":"kr 24,750"}},{"$f":"INDEX(Parametere[],MATCH(Detaljer[[#This Row],[PROSJEKTTYPE]],Parametere[PROSJEKTTYPE],0),MATCH(Detaljer[[#Headers],[KONKURSADVOKAT]],Parametere[#Headers],0))*INDEX(PROSJEKTPARAMETERE!$B$12:$H$12,1,MATCH(Detaljer[[#Headers],[KONKURSADVOKAT]],Parametere[#Headers],0))*Detaljer[[#This Row],[BEREGNET ARBEID]]","v":{"v":0,"d":"kr 0"}},{"$f":"INDEX(Parametere[],MATCH(Detaljer[[#This Row],[PROSJEKTTYPE]],Parametere[PROSJEKTTYPE],0),MATCH(Detaljer[[#Headers],[ADMINISTRASJONSPERSONALE]],Parametere[#Headers],0))*INDEX(PROSJEKTPARAMETERE!$B$12:$H$12,1,MATCH(Detaljer[[#Headers],[ADMINISTRASJONSPERSONALE]],Parametere[#Headers],0))*Detaljer[[#This Row],[BEREGNET ARBEID]]","v":{"v":5625,"d":"kr 5,625"}},{"$f":"INDEX(Parametere[],MATCH(Detaljer[[#This Row],[PROSJEKTTYPE]],Parametere[PROSJEKTTYPE],0),MATCH(Detaljer[[#Headers],[GENERELL PARTNER]],Parametere[#Headers],0))*INDEX(PROSJEKTPARAMETERE!$B$12:$H$12,1,MATCH(Detaljer[[#Headers],[GENERELL PARTNER]],Parametere[#Headers],0))*Detaljer[[#This Row],[FAKTISK ARBEID]]","v":{"v":5075,"d":"kr 5,075"}},{"$f":"INDEX(Parametere[],MATCH(Detaljer[[#This Row],[PROSJEKTTYPE]],Parametere[PROSJEKTTYPE],0),MATCH(Detaljer[[#Headers],[FORRETNINGSADVOKAT]],Parametere[#Headers],0))*INDEX(PROSJEKTPARAMETERE!$B$12:$H$12,1,MATCH(Detaljer[[#Headers],[FORRETNINGSADVOKAT]],Parametere[#Headers],0))*Detaljer[[#This Row],[FAKTISK ARBEID]]","v":{"v":0,"d":"kr 0"}},{"$f":"INDEX(Parametere[],MATCH(Detaljer[[#This Row],[PROSJEKTTYPE]],Parametere[PROSJEKTTYPE],0),MATCH(Detaljer[[#Headers],[FØRE ET FORSVAR]],Parametere[#Headers],0))*INDEX(PROSJEKTPARAMETERE!$B$12:$H$12,1,MATCH(Detaljer[[#Headers],[FØRE ET FORSVAR]],Parametere[#Headers],0))*Detaljer[[#This Row],[FAKTISK ARBEID]]","v":{"v":0,"d":"kr 0"}},{"$f":"INDEX(Parametere[],MATCH(Detaljer[[#This Row],[PROSJEKTTYPE]],Parametere[PROSJEKTTYPE],0),MATCH(Detaljer[[#Headers],[ADVOKAT FOR ÅNDSVERK]],Parametere[#Headers],0))*INDEX(PROSJEKTPARAMETERE!$B$12:$H$12,1,MATCH(Detaljer[[#Headers],[ADVOKAT FOR ÅNDSVERK]],Parametere[#Headers],0))*Detaljer[[#This Row],[FAKTISK ARBEID]]","v":{"v":23925,"d":"kr 23,925"}},{"$f":"INDEX(Parametere[],MATCH(Detaljer[[#This Row],[PROSJEKTTYPE]],Parametere[PROSJEKTTYPE],0),MATCH(Detaljer[[#Headers],[KONKURSADVOKAT]],Parametere[#Headers],0))*INDEX(PROSJEKTPARAMETERE!$B$12:$H$12,1,MATCH(Detaljer[[#Headers],[KONKURSADVOKAT]],Parametere[#Headers],0))*Detaljer[[#This Row],[FAKTISK ARBEID]]","v":{"v":0,"d":"kr 0"}},{"$f":"INDEX(Parametere[],MATCH(Detaljer[[#This Row],[PROSJEKTTYPE]],Parametere[PROSJEKTTYPE],0),MATCH(Detaljer[[#Headers],[ADMINISTRASJONSPERSONALE]],Parametere[#Headers],0))*INDEX(PROSJEKTPARAMETERE!$B$12:$H$12,1,MATCH(Detaljer[[#Headers],[ADMINISTRASJONSPERSONALE]],Parametere[#Headers],0))*Detaljer[[#This Row],[FAKTISK ARBEID]]","v":{"v":5437.5,"d":"kr 5,438"}}]
[null,"Prosjekt 5","Søksmål fra ansatt",{"$f":"TODAY()+220","v":"2019-09-26"},{"$f":"TODAY()+250","v":"2019-10-26"},{"$f":"TODAY()+230","v":"2019-10-06"},{"$f":"TODAY()+259","v":"2019-11-04"},250,255,{"$f":"DAYS360(Detaljer[[#This Row],[BEREGNET START]],Detaljer[[#This Row],[BEREGNET AVSLUTNING]],FALSE)","v":30},{"$f":"DAYS360(Detaljer[[#This Row],[FAKTISK START]],Detaljer[[#This Row],[FAKTISK AVSLUTNING]],FALSE)","v":28},{"$f":"INDEX(Parametere[],MATCH(Detaljer[[#This Row],[PROSJEKTTYPE]],Parametere[PROSJEKTTYPE],0),MATCH(Detaljer[[#Headers],[GENERELL PARTNER]],Parametere[#Headers],0))*INDEX(PROSJEKTPARAMETERE!$B$12:$H$12,1,MATCH(Detaljer[[#Headers],[GENERELL PARTNER]],Parametere[#Headers],0))*Detaljer[[#This Row],[BEREGNET ARBEID]]","v":{"v":17500,"d":"kr 17,500"}},{"$f":"INDEX(Parametere[],MATCH(Detaljer[[#This Row],[PROSJEKTTYPE]],Parametere[PROSJEKTTYPE],0),MATCH(Detaljer[[#Headers],[FORRETNINGSADVOKAT]],Parametere[#Headers],0))*INDEX(PROSJEKTPARAMETERE!$B$12:$H$12,1,MATCH(Detaljer[[#Headers],[FORRETNINGSADVOKAT]],Parametere[#Headers],0))*Detaljer[[#This Row],[BEREGNET ARBEID]]","v":{"v":6250,"d":"kr 6,250"}},{"$f":"INDEX(Parametere[],MATCH(Detaljer[[#This Row],[PROSJEKTTYPE]],Parametere[PROSJEKTTYPE],0),MATCH(Detaljer[[#Headers],[FØRE ET FORSVAR]],Parametere[#Headers],0))*INDEX(PROSJEKTPARAMETERE!$B$12:$H$12,1,MATCH(Detaljer[[#Headers],[FØRE ET FORSVAR]],Parametere[#Headers],0))*Detaljer[[#This Row],[BEREGNET ARBEID]]","v":{"v":30000,"d":"kr 30,000"}},{"$f":"INDEX(Parametere[],MATCH(Detaljer[[#This Row],[PROSJEKTTYPE]],Parametere[PROSJEKTTYPE],0),MATCH(Detaljer[[#Headers],[ADVOKAT FOR ÅNDSVERK]],Parametere[#Headers],0))*INDEX(PROSJEKTPARAMETERE!$B$12:$H$12,1,MATCH(Detaljer[[#Headers],[ADVOKAT FOR ÅNDSVERK]],Parametere[#Headers],0))*Detaljer[[#This Row],[BEREGNET ARBEID]]","v":{"v":0,"d":"kr 0"}},{"$f":"INDEX(Parametere[],MATCH(Detaljer[[#This Row],[PROSJEKTTYPE]],Parametere[PROSJEKTTYPE],0),MATCH(Detaljer[[#Headers],[KONKURSADVOKAT]],Parametere[#Headers],0))*INDEX(PROSJEKTPARAMETERE!$B$12:$H$12,1,MATCH(Detaljer[[#Headers],[KONKURSADVOKAT]],Parametere[#Headers],0))*Detaljer[[#This Row],[BEREGNET ARBEID]]","v":{"v":0,"d":"kr 0"}},{"$f":"INDEX(Parametere[],MATCH(Detaljer[[#This Row],[PROSJEKTTYPE]],Parametere[PROSJEKTTYPE],0),MATCH(Detaljer[[#Headers],[ADMINISTRASJONSPERSONALE]],Parametere[#Headers],0))*INDEX(PROSJEKTPARAMETERE!$B$12:$H$12,1,MATCH(Detaljer[[#Headers],[ADMINISTRASJONSPERSONALE]],Parametere[#Headers],0))*Detaljer[[#This Row],[BEREGNET ARBEID]]","v":{"v":9375,"d":"kr 9,375"}},{"$f":"INDEX(Parametere[],MATCH(Detaljer[[#This Row],[PROSJEKTTYPE]],Parametere[PROSJEKTTYPE],0),MATCH(Detaljer[[#Headers],[GENERELL PARTNER]],Parametere[#Headers],0))*INDEX(PROSJEKTPARAMETERE!$B$12:$H$12,1,MATCH(Detaljer[[#Headers],[GENERELL PARTNER]],Parametere[#Headers],0))*Detaljer[[#This Row],[FAKTISK ARBEID]]","v":{"v":17850,"d":"kr 17,850"}},{"$f":"INDEX(Parametere[],MATCH(Detaljer[[#This Row],[PROSJEKTTYPE]],Parametere[PROSJEKTTYPE],0),MATCH(Detaljer[[#Headers],[FORRETNINGSADVOKAT]],Parametere[#Headers],0))*INDEX(PROSJEKTPARAMETERE!$B$12:$H$12,1,MATCH(Detaljer[[#Headers],[FORRETNINGSADVOKAT]],Parametere[#Headers],0))*Detaljer[[#This Row],[FAKTISK ARBEID]]","v":{"v":6375,"d":"kr 6,375"}},{"$f":"INDEX(Parametere[],MATCH(Detaljer[[#This Row],[PROSJEKTTYPE]],Parametere[PROSJEKTTYPE],0),MATCH(Detaljer[[#Headers],[FØRE ET FORSVAR]],Parametere[#Headers],0))*INDEX(PROSJEKTPARAMETERE!$B$12:$H$12,1,MATCH(Detaljer[[#Headers],[FØRE ET FORSVAR]],Parametere[#Headers],0))*Detaljer[[#This Row],[FAKTISK ARBEID]]","v":{"v":30600,"d":"kr 30,600"}},{"$f":"INDEX(Parametere[],MATCH(Detaljer[[#This Row],[PROSJEKTTYPE]],Parametere[PROSJEKTTYPE],0),MATCH(Detaljer[[#Headers],[ADVOKAT FOR ÅNDSVERK]],Parametere[#Headers],0))*INDEX(PROSJEKTPARAMETERE!$B$12:$H$12,1,MATCH(Detaljer[[#Headers],[ADVOKAT FOR ÅNDSVERK]],Parametere[#Headers],0))*Detaljer[[#This Row],[FAKTISK ARBEID]]","v":{"v":0,"d":"kr 0"}},{"$f":"INDEX(Parametere[],MATCH(Detaljer[[#This Row],[PROSJEKTTYPE]],Parametere[PROSJEKTTYPE],0),MATCH(Detaljer[[#Headers],[KONKURSADVOKAT]],Parametere[#Headers],0))*INDEX(PROSJEKTPARAMETERE!$B$12:$H$12,1,MATCH(Detaljer[[#Headers],[KONKURSADVOKAT]],Parametere[#Headers],0))*Detaljer[[#This Row],[FAKTISK ARBEID]]","v":{"v":0,"d":"kr 0"}},{"$f":"INDEX(Parametere[],MATCH(Detaljer[[#This Row],[PROSJEKTTYPE]],Parametere[PROSJEKTTYPE],0),MATCH(Detaljer[[#Headers],[ADMINISTRASJONSPERSONALE]],Parametere[#Headers],0))*INDEX(PROSJEKTPARAMETERE!$B$12:$H$12,1,MATCH(Detaljer[[#Headers],[ADMINISTRASJONSPERSONALE]],Parametere[#Headers],0))*Detaljer[[#This Row],[FAKTISK ARBEID]]","v":{"v":9562.5,"d":"kr 9,563"}}]
[null,"TOTALT",{"$nulls":5},{"$f":"SUBTOTAL(109,Detaljer[BEREGNET ARBEID])","v":1500},{"$f":"SUBTOTAL(109,Detaljer[FAKTISK ARBEID])","v":1510},{"$f":"SUBTOTAL(109,Detaljer[BEREGNET VARIGHET])","v":190},{"$f":"SUBTOTAL(109,Detaljer[FAKTISK VARIGHET])","v":169}]

{"sheet":"PROSJEKTTOTALER","index":3,"n_rows":11,"n_cols":16,"rows_kept":11,"merged":[[3,2,3,7],[3,8,3,13],[3,15,14,19]]}
["Se prosjekttotaler i dette regnearket. Firmanavn oppdateres automatisk i cellen til høyre Du finner nyttige instruksjoner i cellene i denne kolonnen. Trykk på PIL NED for å komme i gang.",{"$f":"PROSJEKTPARAMETERE!B1","v":"Firmanavn"}]
["Tittelen på dette regnearket finnes i cellen til høyre",{"$f":"PROSJEKTPARAMETERE!B2","v":"Prosjektplanlegging for advokatfirmaer"}]
["Taushetspliktsmeldingen er i cellen til høyre.",{"$f":"PROSJEKTPARAMETERE!B3","v":"Firmanavn konfidensielt"}]
["Beregnet-etikett finnes i celle C4, Faktisk-etikett er i celle I4, og informasjonstips er i celle P4.",null,"BEREGNET",{"$nulls":5},"FAKTISK",{"$nulls":6},"INFO: \nDenne pivottabellen oppdateres ikke automatisk.  Hvis du vil oppdatere den, merker du den (en hvilken som helst celle i pivottabellen), og trykk på Oppdater på båndfanen PIVOTTABELLVERKTØY | ANALYSER.  Eller du kan trykke på SKIFT+F10 ved å merke pivottabellen og velge Oppdater."]
["Pivottabellen som starter i cellen til høyre, oppdateres automatisk","PROSJEKTNAVN","GENERELL PARTNER ","FIRMA ","FØRE ET FORSVAR ","ÅNDSVERK ","KONKURS ","ADMINISTRASJONSPERSONALE ","GENERELL PARTNER  ","FIRMA  ","FØRE ET FORSVAR  ","KONKURS  ","ÅNDSVERK  ","ADMINISTRASJONSPERSONALE  "]
[null,"Prosjekt 1",{"v":7000,"d":"kr 7,000.00"},{"v":20000,"d":"kr 20,000.00"},{"v":0,"d":"kr 0.00"},{"v":0,"d":"kr 0.00"},{"v":0,"d":"kr 0.00"},{"v":12500,"d":"kr 12,500.00"},{"v":7700,"d":"kr 7,700.00"},{"v":22000,"d":"kr 22,000.00"},{"v":0,"d":"kr 0.00"},{"v":0,"d":"kr 0.00"},{"v":0,"d":"kr 0.00"},{"v":13750,"d":"kr 13,750.00"}]
[null,"Prosjekt 2",{"v":14000,"d":"kr 14,000.00"},{"v":40000,"d":"kr 40,000.00"},{"v":0,"d":"kr 0.00"},{"v":11000,"d":"kr 11,000.00"},{"v":0,"d":"kr 0.00"},{"v":20000,"d":"kr 20,000.00"},{"v":13650,"d":"kr 13,650.00"},{"v":39000,"d":"kr 39,000.00"},{"v":0,"d":"kr 0.00"},{"v":10725,"d":"kr 10,725.00"},{"v":0,"d":"kr 0.00"},{"v":19500,"d":"kr 19,500.00"}]
[null,"Prosjekt 3",{"v":35000,"d":"kr 35,000.00"},{"v":0,"d":"kr 0.00"},{"v":75000,"d":"kr 75,000.00"},{"v":0,"d":"kr 0.00"},{"v":0,"d":"kr 0.00"},{"v":18750,"d":"kr 18,750.00"},{"v":35000,"d":"kr 35,000.00"},{"v":0,"d":"kr 0.00"},{"v":75000,"d":"kr 75,000.00"},{"v":0,"d":"kr 0.00"},{"v":0,"d":"kr 0.00"},{"v":18750,"d":"kr 18,750.00"}]
[null,"Prosjekt 4",{"v":5250,"d":"kr 5,250.00"},{"v":0,"d":"kr 0.00"},{"v":0,"d":"kr 0.00"},{"v":24750,"d":"kr 24,750.00"},{"v":0,"d":"kr 0.00"},{"v":5625,"d":"kr 5,625.00"},{"v":5075,"d":"kr 5,075.00"},{"v":0,"d":"kr 0.00"},{"v":0,"d":"kr 0.00"},{"v":23925,"d":"kr 23,925.00"},{"v":0,"d":"kr 0.00"},{"v":5437.5,"d":"kr 5,437.50"}]
[null,"Prosjekt 5",{"v":17500,"d":"kr 17,500.00"},{"v":6250,"d":"kr 6,250.00"},{"v":30000,"d":"kr 30,000.00"},{"v":0,"d":"kr 0.00"},{"v":0,"d":"kr 0.00"},{"v":9375,"d":"kr 9,375.00"},{"v":17850,"d":"kr 17,850.00"},{"v":6375,"d":"kr 6,375.00"},{"v":30600,"d":"kr 30,600.00"},{"v":0,"d":"kr 0.00"},{"v":0,"d":"kr 0.00"},{"v":9562.5,"d":"kr 9,562.50"}]
[null,"Totalsum",{"v":78750,"d":"kr 78,750.00"},{"v":66250,"d":"kr 66,250.00"},{"v":105000,"d":"kr 105,000.00"},{"v":35750,"d":"kr 35,750.00"},{"v":0,"d":"kr 0.00"},{"v":66250,"d":"kr 66,250.00"},{"v":79275,"d":"kr 79,275.00"},{"v":67375,"d":"kr 67,375.00"},{"v":105600,"d":"kr 105,600.00"},{"v":34650,"d":"kr 34,650.00"},{"v":0,"d":"kr 0.00"},{"v":67000,"d":"kr 67,000.00"}]